bitfinex/quotes_SOLUSD_20260203
["timestamp","ask_amount","ask_price","bid_price","bid_amount"]
[1770129156300,8.55505531,102.93,102.87,4.0534683]
[1770129156478,6.02745003,102.93,102.9,4.0534683]
[1770129156998,10.29393061,102.97,102.92,11.84355391]
[1770129157197,6.0334278,103.01,102.96,4.0534683]
[1770129157406,6.0334278,103.01,102.92,27.02]
[1770129157407,6.0334278,103.01,102.97,11.84355391]
[1770129157697,7.79008561,103.03,102.99,4.0534683]
[1770129157876,7.79008561,103.02,102.99,9.70948092]
[1770129158072,7.79008561,103.02,102.98,4.0534683]
[1770129158271,7.79008561,103.0,102.96,13.76583743]
[1770129158600,7.79008561,102.99,102.94,11.84355391]
[1770129158786,7.79008561,102.98,102.94,9.71372061]
[1770129158990,7.79008561,102.97,102.93,13.76854381]
[1770129159208,7.79008561,102.95,102.91,4.0534683]
[1770129159399,7.79008561,102.95,102.91,13.77045236]
[1770129159890,7.79008561,102.94,102.91,4.0534683]
[1770129160194,12.14796943,102.95,102.89,4.0534683]
[1770129160374,36.43160226,102.95,102.89,4.0534683]
[1770129160708,12.13967667,102.92,102.89,4.0534683]
[1770129161075,12.13967667,102.91,102.89,4.0534683]
[1770129161276,12.13967667,102.91,102.87,13.77408813]
[1770129161472,12.13967667,102.91,102.88,9.71997497]
[1770129161706,12.13967667,102.91,102.87,13.77412285]
[1770129161907,12.13967667,102.89,102.85,62.15952225]
[1770129162093,12.13967667,102.89,102.85,31.0734683]
[1770129162399,12.13967667,102.87,102.84,9.72368042]
[1770129162592,38.28561401,102.91,102.85,13.77613971]
[1770129162593,12.13967667,102.89,102.85,13.77613971]
[1770129163306,12.13967667,102.89,102.85,13.77620362]
[1770129163484,12.13967667,102.88,102.85,4.0534683]
[1770129163797,12.13967667,102.88,102.85,13.77614159]
[1770129163996,21.85978727,102.88,102.85,4.0534683]
[1770129164199,12.13967667,102.86,102.83,4.0534683]
[1770129164388,12.13967667,102.86,102.81,40.50901025]
[1770129164703,12.13967667,102.85,102.82,13.7785572]
[1770129164998,12.13967667,102.85,102.82,4.0534683]
[1770129165202,12.13967667,102.84,102.8,28.37127018]
[1770129165379,2.32332869,102.87,102.81,13.77946473]
[1770129165584,2.32332869,102.87,102.79,13.78149109]
[1770129165585,12.13967667,102.82,102.79,13.78149109]
[1770129166101,9.72310354,102.85,102.8,4.0534683]
[1770129166283,12.13967667,102.84,102.8,4.0534683]
[1770129167403,9.72310354,102.85,102.8,4.0534683]
[1770129167791,34.03034709,102.85,102.8,4.0534683]
[1770129167993,34.03034709,102.85,102.78,63.46262789]
[1770129167994,2.25982185,102.84,102.78,13.78273482]
[1770129168189,12.13967667,102.81,102.77,4.0534683]
[1770129168396,12.13967667,102.81,102.78,9.72920726]
[1770129168585,12.13967667,102.82,102.79,9.72795738]
[1770129168786,12.13967667,102.83,102.79,13.78142568]
[1770129169199,12.13967667,102.82,102.79,4.0534683]
[1770129169701,12.13967667,102.8,102.77,4.0534683]
[1770129169902,12.13967667,102.79,102.77,4.0534683]
[1770129170107,12.13967667,102.79,102.75,33.74374427]
[1770129170309,12.13967667,102.79,102.76,13.84919893]
[1770129170497,12.13967667,102.8,102.77,13.8485969]
[1770129171005,12.13967667,102.81,102.77,13.8485969]
[1770129171400,12.13967667,102.82,102.78,4.11831171]
[1770129171604,6.4537692,102.84,102.8,4.11831171]
[1770129171605,12.13967667,102.84,102.8,4.11831171]
[1770129171803,9.72292328,102.85,102.8,4.11831171]
[1770129171804,12.13967667,102.83,102.8,4.11831171]
[1770129172005,12.13967667,102.82,102.8,9.72759727]
[1770129172305,12.13967667,102.82,102.79,4.11831171]
[1770129172306,12.13967667,102.83,102.79,13.84646267]
[1770129172612,12.13967667,102.83,102.8,9.72756188]
[1770129172911,12.13967667,102.83,102.8,9.72756462]
[1770129173411,12.13967667,102.83,102.79,13.84643329]
[1770129173614,9.72292328,102.85,102.8,13.50432048]
[1770129173916,12.13967667,102.83,102.79,13.50500572]
[1770129174096,21.86476298,102.83,102.79,13.50500572]
[1770129174301,12.13967667,102.82,102.78,13.50604339]
[1770129174500,12.13967667,102.83,102.79,3.77680762]
[1770129174814,12.13967667,102.85,102.81,3.77680762]
[1770129174998,12.13967667,102.84,102.81,3.77680762]
[1770129175390,2.06334681,102.92,102.83,3.77680762]
[1770129175603,12.13967667,102.88,102.84,3.77680762]
[1770129175804,12.13967667,102.87,102.83,9.72430394]
[1770129176010,12.13967667,102.87,102.83,13.50111156]
[1770129176207,26.36173351,102.89,102.83,13.50111156]
[1770129176208,12.13967667,102.89,102.85,3.77680762]
[1770129176400,12.13967667,102.91,102.87,3.77680762]
[1770129176599,12.13967667,102.88,102.84,3.77680762]
[1770129176812,12.13967667,102.85,102.81,9.72629912]
[1770129177112,12.13967667,102.85,102.82,3.77680762]
[1770129177323,12.13967667,102.85,102.81,13.50304853]
[1770129177615,12.13967667,102.85,102.82,13.50241327]
[1770129177919,12.13967667,102.84,102.8,3.77680762]
[1770129178113,12.13967667,102.84,102.81,9.72620755]
[1770129178417,12.13967667,102.82,102.78,13.50579353]
[1770129178723,12.13967667,102.83,102.79,3.77680762]
[1770129179016,12.13967667,102.85,102.81,3.77680762]
[1770129179198,12.13967667,102.84,102.8,3.77680762]
[1770129179508,12.13967667,102.83,102.8,3.77680762]
[1770129179911,12.13967667,102.84,102.81,9.72668028]
[1770129180101,21.86297675,102.85,102.81,13.5034879]
[1770129180494,17.51892432,102.85,102.81,3.77680762]
[1770129180699,7.79562424,102.83,102.8,9.72725051]
[1770129180899,7.79562424,102.83,102.8,13.50405813]
[1770129181123,36.00384379,102.85,102.81,3.77680762]
[1770129181124,7.79562424,102.84,102.81,3.77680762]
[1770129181420,7.79562424,102.85,102.81,3.77680762]
[1770129181604,17.51768645,102.86,102.82,3.77680762]
[1770129181921,6.23117747,102.88,102.81,7.79562424]
[1770129181922,6.23117747,102.88,102.83,13.5015961]
[1770129182111,7.79562424,102.89,102.85,3.77680762]
[1770129182311,7.79562424,102.88,102.83,45.60919155]
[1770129182511,12.15115502,102.89,102.84,15.92796264]
[1770129182717,12.15115502,102.89,102.85,3.77680762]
[1770129182913,12.15115502,102.89,102.83,34.03675969]
[1770129182914,12.15115502,102.88,102.83,37.81356731]
[1770129183124,12.15115502,102.87,102.83,13.5015961]
[1770129183600,12.15115502,102.84,102.8,9.72747074]
[1770129183808,12.15115502,102.81,102.78,9.72895104]
[1770129184121,12.15115502,102.79,102.77,9.73015066]
[1770129184509,11.64745087,102.82,102.77,9.73015066]
[1770129184510,14.00012067,102.83,102.78,3.77680762]
[1770129184711,12.15115502,102.83,102.79,3.77680762]
[1770129185013,12.15115502,102.82,102.79,3.77680762]
[1770129185410,6.18018637,102.85,102.79,3.77680762]
[1770129185602,9.7223826,102.86,102.81,3.77680762]
[1770129185797,12.15115502,102.85,102.81,3.77680762]
[1770129186104,12.15115502,102.88,102.84,3.77680762]
[1770129186320,27.02,102.9,102.85,3.77680762]
[1770129186321,21.87003638,102.9,102.85,3.77680762]
[1770129186823,21.86889687,102.91,102.86,15.92796264]
[1770129187021,21.86779974,102.92,102.87,15.92796264]
[1770129187226,12.15115502,102.88,102.81,13.50307843]
[1770129187518,12.15115502,102.83,102.79,13.50503068]
[1770129187723,12.15115502,102.82,102.79,13.50503068]
[1770129187925,12.15115502,102.83,102.8,9.72701123]
[1770129188622,12.16234573,102.83,102.8,13.50381885]
[1770129188821,12.16234573,102.87,102.83,3.77680762]
[1770129189026,12.16234573,102.86,102.83,3.77680762]
[1770129189228,12.16234573,102.84,102.8,3.77680762]
[1770129189442,6.11488988,102.85,102.79,13.504927]
[1770129189729,12.16234573,102.85,102.81,3.77680762]
[1770129190528,9.72203435,102.86,102.82,13.50254191]
[1770129190703,12.16234573,102.84,102.81,13.50323371]
[1770129190907,12.16234573,102.85,102.82,3.77680762]
[1770129191109,21.88438008,102.86,102.82,3.77680762]
[1770129191302,21.88438008,102.86,102.81,21.88877182]
[1770129191303,12.16234573,102.84,102.81,9.72642609]
[1770129191506,12.16234573,102.84,102.8,13.50427671]
[1770129191730,12.16234573,102.83,102.79,3.77680762]
[1770129191947,12.16234573,102.81,102.77,3.77680762]
[1770129192103,12.16234573,102.81,102.77,13.50660068]
[1770129192310,12.16234573,102.8,102.77,13.50660068]
[1770129192923,9.72614413,102.82,102.78,3.77680762]
[1770129193124,12.16234573,102.81,102.78,3.77680762]
[1770129193514,0.28432314,102.85,102.79,3.77680762]
[1770129193820,12.16234573,102.84,102.79,3.77680762]
[1770129194023,12.16234573,102.83,102.79,3.77680762]
[1770129194335,12.16234573,102.81,102.78,3.77680762]
[1770129194538,12.16234573,102.8,102.77,9.72979306]
[1770129194846,12.16234573,102.81,102.78,3.77680762]
[1770129195048,12.16234573,102.8,102.77,9.72979306]
[1770129195334,12.16234573,102.8,102.77,13.50660068]
[1770129195547,12.16234573,102.8,102.75,3.77680762]
[1770129195748,1.7323651,102.81,102.73,3.77680762]
[1770129195749,12.16234573,102.76,102.73,3.77680762]
[1770129196413,12.16234573,102.76,102.73,13.51067296]
[1770129196813,12.16234573,102.76,102.73,3.77680762]
[1770129197029,12.16234573,102.79,102.74,12.16234573]
[1770129197210,12.16234573,102.79,102.75,3.77680762]
[1770129197409,12.16234573,102.78,102.74,3.77680762]
[1770129197806,12.16234573,102.79,102.74,15.93915335]
[1770129198814,16.06234721,102.77,102.72,3.91896919]
[1770129199037,12.16234573,102.77,102.74,9.73307036]
[1770129199534,12.16234573,102.78,102.74,9.73307036]
[1770129199920,12.16234573,102.8,102.75,12.16234573]
[1770129200117,16.06234721,102.79,102.74,13.50987798]
[1770129200335,12.16234573,102.75,102.74,3.77680762]
[1770129200628,12.16234573,102.76,102.74,3.77680762]
[1770129200827,12.16234573,102.77,102.74,13.51002078]
[1770129201051,12.16234573,102.76,102.74,3.77680762]
[1770129201243,12.16234573,102.79,102.74,15.93915335]
[1770129201427,12.16234573,102.79,102.74,50.00568489]
[1770129201622,12.16234573,102.77,102.74,13.51007072]
[1770129201827,16.03356642,102.78,102.74,13.51007072]
[1770129202141,12.16234573,102.77,102.73,3.80779004]
[1770129202321,12.16234573,102.77,102.74,9.73321964]
[1770129202522,12.16234573,102.78,102.74,13.54100968]
[1770129203014,12.16234573,102.77,102.73,9.73373646]
[1770129203434,16.03356642,102.78,102.74,9.73303666]
[1770129203633,13.59929535,102.8,102.75,3.80779004]
[1770129203816,12.16234573,102.79,102.75,3.80779004]
[1770129204021,12.16234573,102.78,102.74,13.5408267]
[1770129204324,12.16234573,102.79,102.75,3.80779004]
[1770129204650,7.80500245,102.78,102.74,37.87409514]
[1770129204936,11.67622314,102.79,102.74,45.67909759]
[1770129205321,21.40498986,102.79,102.74,45.67909759]
[1770129205520,7.80500245,102.78,102.74,37.87409514]
[1770129205936,11.67622314,102.78,102.74,9.73303666]
[1770129206123,7.80500245,102.77,102.74,9.73303666]
[1770129206440,7.80500245,102.75,102.71,28.14729582]
[1770129206620,7.80500245,102.75,102.72,9.73472577]
[1770129207145,7.80500245,102.74,102.7,9.73666883]
[1770129207435,21.40864038,102.75,102.71,9.7360694]
[1770129207625,17.53689509,102.76,102.71,45.6892377]
[1770129207822,7.80500245,102.76,102.72,3.80779004]
[1770129208026,17.53662368,102.76,102.72,3.80779004]
[1770129208227,7.80500245,102.74,102.71,9.7360694]
[1770129208839,7.80500245,102.74,102.7,9.73657673]
[1770129208840,7.80500245,102.73,102.7,9.73657673]
[1770129209155,17.53762434,102.75,102.71,3.80779004]
[1770129209445,11.67622314,102.76,102.71,3.80779004]
[1770129209752,3.87122069,102.8,102.75,3.80779004]
[1770129210036,7.80500245,102.83,102.78,11.61279249]
[1770129210218,7.80500245,102.82,102.78,3.80779004]
[1770129210620,17.52886854,102.84,102.79,11.61279249]
[1770129210846,7.80500245,102.83,102.79,3.80779004]
[1770129211025,17.53012413,102.83,102.79,13.53621896]
[1770129211219,17.53012413,102.83,102.77,9.72993948]
[1770129211220,11.67622314,102.81,102.77,9.72993948]
[1770129211652,7.80500245,102.82,102.78,9.72929264]
[1770129212822,7.80500245,102.82,102.77,11.61279249]
[1770129212823,7.80500245,102.85,102.81,3.80779004]
[1770129213023,17.72563475,102.88,102.83,21.33674015]
[1770129213228,21.59685544,102.88,102.83,21.33674015]
[1770129213524,7.80500245,102.86,102.82,9.72562129]
[1770129213726,11.67622314,102.87,102.83,9.72448727]
[1770129214643,11.67622314,102.87,102.82,13.53310827]
[1770129215030,11.67622314,102.87,102.83,9.72478841]
[1770129215228,0.2,102.88,102.85,3.80779004]
[1770129215431,0.2,102.88,102.85,11.61279249]
[1770129215922,0.2,102.88,102.85,3.80779004]
[1770129216341,0.2,102.88,102.85,11.61279249]
[1770129216536,0.2,102.88,102.85,3.80779004]
[1770129217323,0.2,102.88,102.85,13.52991311]
[1770129217549,0.2,102.88,102.82,27.02]
[1770129217550,3.87122069,102.87,102.82,30.82779004]
[1770129217736,3.87122069,102.87,102.84,9.72362268]
[1770129217932,11.67622314,102.87,102.83,13.53214034]
[1770129218237,11.67622314,102.84,102.8,9.72762645]
[1770129218441,7.80500245,102.82,102.79,13.53602273]
[1770129218638,7.80500245,102.83,102.79,13.53602273]
[1770129218847,7.80500245,102.82,102.78,9.72905349]
[1770129219151,7.80500245,102.81,102.77,13.53817661]
[1770129219450,17.53180299,102.81,102.77,13.53817661]
[1770129220142,7.80500245,102.81,102.77,13.53817661]
[1770129220450,17.53095361,102.82,102.78,3.80779004]
[1770129220950,7.80500245,102.81,102.78,3.80779004]
[1770129221147,7.80500245,102.81,102.76,11.61279249]
[1770129221339,7.80500245,102.81,102.75,51.34896267]
[1770129221340,7.80500245,102.79,102.75,13.53975409]
[1770129221526,7.80500245,102.77,102.74,9.73315578]
[1770129221727,7.80500245,102.77,102.73,9.73385917]
[1770129221950,7.80500245,102.77,102.73,3.80779004]
[1770129222533,11.67622314,102.78,102.74,9.73284085]
[1770129222732,11.67622314,102.78,102.73,3.80779004]
[1770129222733,7.80500245,102.77,102.73,13.54181957]
[1770129223225,7.80500245,102.77,102.74,9.73330737]
[1770129223751,24.31906614,102.8,102.74,13.54109741]
[1770129223752,17.53406728,102.79,102.74,13.54109741]
[1770129224048,7.80500245,102.77,102.74,3.80779004]
[1770129224344,7.80500245,102.78,102.74,3.80779004]
[1770129224545,7.80500245,102.78,102.73,9.73381995]
[1770129224546,3.87122069,102.76,102.7,27.02]
[1770129224755,3.87122069,102.76,102.71,3.80779004]
[1770129224960,7.80500245,102.75,102.71,13.54350713]
[1770129225153,11.67622314,102.75,102.71,9.73571709]
[1770129225334,7.80500245,102.74,102.7,3.80779004]
[1770129226036,17.53775785,102.75,102.71,3.80779004]
[1770129226351,7.80500245,102.75,102.71,3.80779004]
[1770129226732,21.40812273,102.76,102.71,3.80779004]
[1770129226933,7.80500245,102.75,102.71,3.80779004]
[1770129227452,21.40812273,102.76,102.72,9.73520249]
[1770129227845,11.67622314,102.75,102.71,9.73573486]
[1770129228231,7.80500245,102.74,102.71,9.73573486]
[1770129228432,11.67622314,102.75,102.71,9.73573486]
[1770129228732,21.40718705,102.77,102.72,3.80779004]
[1770129229055,7.80500245,102.76,102.72,3.80779004]
[1770129229569,7.80500245,102.75,102.72,3.80779004]
[1770129229767,7.80500245,102.74,102.7,13.5442917]
[1770129229943,7.80500245,102.74,102.7,13.54444456]
[1770129230447,11.54675137,102.73,102.68,40.32183904]
[1770129230651,7.80500245,102.72,102.68,13.30220619]
[1770129230858,7.80500245,102.73,102.69,13.20126165]
[1770129231061,7.80500245,102.75,102.71,3.46371395]
[1770129231270,11.54675137,102.74,102.7,9.73679827]
[1770129231561,21.28025541,102.74,102.7,9.73679827]
[1770129232456,17.53780217,102.75,102.71,3.46371395]
[1770129232758,7.80500245,102.73,102.69,13.3325065]
[1770129233066,11.31989194,102.72,102.68,9.83852815]
[1770129233457,3.51488949,102.72,102.68,13.43334002]
[1770129233640,7.80500245,102.71,102.68,0.1]
[1770129233842,9.73459731,102.73,102.69,3.59481187]
[1770129234070,17.53959976,102.73,102.69,3.59481187]
[1770129234362,21.05448925,102.73,102.69,3.59481187]
[1770129235239,17.53862835,102.74,102.69,3.59481187]
[1770129235566,9.7336259,102.74,102.7,3.59481187]
[1770129235869,17.53862835,102.74,102.7,13.33160408]
[1770129236066,7.80500245,102.73,102.7,3.59481187]
[1770129236364,7.80500245,102.73,102.7,9.7370093]
[1770129236563,7.80500245,102.73,102.69,13.33233514]
[1770129236955,11.31989194,102.72,102.68,0.1]
[1770129237262,7.80500245,102.71,102.68,0.1]
[1770129237444,11.31989194,102.72,102.68,13.43375674]
[1770129237845,21.05558683,102.72,102.68,13.43370176]
[1770129238165,21.05529734,102.72,102.68,13.43370176]
[1770129238365,17.53978871,102.73,102.68,13.43370176]
[1770129238674,32.12071165,102.76,102.7,3.59481187]
[1770129238852,7.80500245,102.75,102.71,3.59481187]
[1770129239045,7.80500245,102.73,102.69,3.59481187]
[1770129239583,11.31989194,102.71,102.68,0.1]
[1770129239758,34.0636871,102.75,102.63,44.04974294]
[1770129239759,9.73899493,102.68,102.64,9.74271701]
[1770129240063,9.73899493,102.68,102.63,9.74368062]
[1770129240243,13.25338887,102.69,102.64,3.59481187]
[1770129240439,3.51488949,102.68,102.64,3.59481187]
[1770129240840,3.51488949,102.66,102.63,9.74368062]
[1770129241046,7.80500245,102.66,102.63,9.74351227]
[1770129241346,3.51488949,102.69,102.64,3.59481187]
[1770129241563,21.05629862,102.71,102.66,11.39981432]
[1770129241757,7.80500245,102.72,102.68,37.68129413]
[1770129242067,11.31989194,102.73,102.68,13.3338068]
[1770129242271,7.80500245,102.74,102.7,3.59481187]
[1770129242565,11.31989194,102.74,102.69,3.59481187]
[1770129242877,3.51488949,102.76,102.71,11.39981432]
[1770129243444,17.53546853,102.77,102.72,11.39981432]
[1770129243643,7.80500245,102.76,102.72,3.59481187]
[1770129243869,7.80500245,102.76,102.7,7.80500245]
[1770129243870,7.80500245,102.74,102.7,3.59481187]
[1770129244050,7.80500245,102.74,102.7,13.33144726]
[1770129244251,11.31989194,102.75,102.7,13.33144726]
[1770129244549,7.80500245,102.74,102.7,13.33144726]
[1770129244754,3.51488949,102.75,102.7,3.59481187]
[1770129244957,7.80500245,102.74,102.7,3.59481187]
[1770129245546,7.80500245,102.78,102.74,3.59481187]
[1770129245747,9.73236009,102.75,102.71,9.73580788]
[1770129246048,7.80500245,102.76,102.71,11.39981432]
[1770129246255,7.80500245,102.73,102.69,9.73732893]
[1770129246459,34.05522334,102.78,102.73,3.59481187]
[1770129246770,21.0494113,102.78,102.73,3.59481187]
[1770129246952,21.0494113,102.78,102.73,11.39981432]
[1770129247145,21.0494113,102.78,102.73,3.59481187]
[1770129247345,21.0494113,102.78,102.73,11.39981432]
[1770129247546,9.72951936,102.78,102.74,11.39981432]
[1770129247965,3.51488949,102.8,102.76,11.39981432]
[1770129248150,11.31989194,102.81,102.76,11.39981432]
[1770129248466,11.31989194,102.8,102.76,3.59481187]
[1770129248793,11.31989194,102.78,102.72,3.59481187]
[1770129249076,11.31989194,102.77,102.72,11.39981432]
[1770129249250,11.31989194,102.77,102.72,3.59481187]
[1770129249448,11.31989194,102.79,102.74,21.13289592]
[1770129250164,11.31989194,102.79,102.74,3.59481187]
[1770129250165,7.80500245,102.78,102.74,3.59481187]
[1770129250367,11.3233517,102.77,102.72,13.32955204]
[1770129250747,11.3233517,102.77,102.72,21.13801425]
[1770129250944,7.80846221,102.74,102.69,21.14124021]
[1770129251191,7.80846221,102.73,102.68,9.73826268]
[1770129251348,7.80846221,102.71,102.67,13.33422841]
[1770129251546,7.80846221,102.71,102.67,13.33445129]
[1770129252159,7.80846221,102.73,102.7,3.59481187]
[1770129252359,7.80846221,102.73,102.68,7.80846221]
[1770129252360,7.80846221,102.71,102.68,3.59481187]
[1770129252563,7.80846221,102.72,102.68,13.33349718]
[1770129252757,7.80846221,102.72,102.68,3.59481187]
[1770129252965,7.80846221,102.73,102.69,3.59481187]
[1770129253287,3.51194581,102.73,102.69,3.59481187]
[1770129253478,11.32040802,102.73,102.69,3.59481187]
[1770129253687,7.80846221,102.73,102.69,3.59481187]
[1770129253981,13.24402186,102.79,102.73,3.59481187]
[1770129254162,21.05194497,102.79,102.74,21.13658145]
[1770129254690,7.80846221,102.78,102.74,3.59481187]
[1770129255565,9.72859327,102.79,102.75,3.59481187]
[1770129256176,17.53642536,102.8,102.76,3.59481187]
[1770129256563,7.80846221,102.82,102.78,3.59481187]
[1770129256880,17.73169563,102.85,102.8,11.40327408]
[1770129257185,7.80846221,102.84,102.8,3.59481187]
[1770129257349,7.80846221,102.83,102.77,3.59481187]
[1770129257553,7.80846221,102.84,102.79,3.59481187]
[1770129257776,7.80846221,102.82,102.79,3.59481187]
[1770129257963,7.80846221,102.83,102.79,3.59481187]
[1770129258153,17.53347704,102.83,102.79,13.32322615]
[1770129258354,7.80846221,102.82,102.79,3.59481187]
[1770129258554,17.53347704,102.83,102.79,3.59481187]
[1770129259056,9.72501483,102.83,102.8,3.59481187]
[1770129259356,17.53347704,102.83,102.78,21.13237419]
[1770129259558,9.72431763,102.84,102.8,11.40327408]
[1770129259873,37.74540776,102.85,102.8,3.59481187]
[1770129260077,37.74540776,102.85,102.76,54.9618048]
[1770129260078,3.51488949,102.81,102.76,54.9618048]
[1770129260379,7.80846221,102.8,102.76,13.32574409]
[1770129260767,17.53613294,102.8,102.76,13.32574409]
[1770129261280,7.80846221,102.78,102.75,9.73225373]
[1770129261493,7.80846221,102.78,102.75,3.3297361]
[1770129261663,3.6273275,102.78,102.73,13.06379655]
[1770129261863,7.80846221,102.76,102.72,3.3297361]
[1770129262079,7.80846221,102.76,102.72,13.06448217]
[1770129262283,17.5408223,102.75,102.7,3.3297361]
[1770129262466,17.5408223,102.75,102.7,13.06658903]
[1770129262467,7.80846221,102.74,102.7,13.06658903]
[1770129262674,13.35968759,102.75,102.71,9.73610285]
[1770129262872,13.35815458,102.77,102.72,9.73508358]
[1770129263183,7.80846221,102.77,102.73,3.3297361]
[1770129263480,7.80846221,102.76,102.72,13.06481968]
[1770129263686,7.80846221,102.75,102.72,3.3297361]
[1770129263874,7.80846221,102.74,102.7,13.06644453]
[1770129264278,17.54304366,102.73,102.69,3.3297361]
[1770129264586,17.54304366,102.73,102.69,13.06765545]
[1770129264887,7.80846221,102.73,102.69,13.06765545]
[1770129265062,21.16956883,102.74,102.69,9.73791935]
[1770129265268,7.80846221,102.73,102.7,3.3297361]
[1770129266082,11.43578971,102.71,102.67,9.739527]
[1770129266276,7.80846221,102.71,102.67,13.0692631]
[1770129266784,17.54424724,102.72,102.68,3.3297361]
[1770129266973,32.23508236,102.75,102.68,3.3297361]
[1770129267171,7.80846221,102.74,102.69,3.3297361]
[1770129267486,32.23508236,102.75,102.7,3.3297361]
[1770129267487,21.16847812,102.75,102.7,3.3297361]
[1770129267666,7.80846221,102.74,102.7,3.3297361]
[1770129268068,9.73268841,102.75,102.7,3.3297361]
[1770129268267,9.73268841,102.75,102.71,13.06577658]
[1770129268888,7.80846221,102.73,102.69,13.06776486]
[1770129269086,7.80846221,102.72,102.69,3.3297361]
[1770129269278,7.80846221,102.73,102.69,3.3297361]
[1770129269486,7.80846221,102.73,102.69,13.06763478]
[1770129269685,7.80846221,102.73,102.69,3.3297361]
[1770129269879,7.80846221,102.72,102.69,3.3297361]
[1770129270382,9.73532694,102.72,102.69,3.3297361]
[1770129270582,91.85979073,102.76,102.69,3.3297361]
[1770129270583,3.6273275,102.75,102.69,3.3297361]
[1770129270891,7.80846221,102.74,102.7,3.3297361]
[1770129271087,7.80846221,102.73,102.7,3.3297361]
[1770129271294,7.80846221,102.73,102.69,3.3297361]
[1770129271494,7.80846221,102.73,102.7,3.3297361]
[1770129271890,17.5408223,102.75,102.7,3.3297361]
[1770129272275,17.5408223,102.75,102.7,11.13819831]
[1770129272478,17.5408223,102.75,102.71,13.0655862]
[1770129272690,9.73236009,102.75,102.72,3.3297361]
[1770129272992,17.53934473,102.77,102.73,3.3297361]
[1770129273590,21.16392873,102.8,102.75,7.80846221]
[1770129273790,17.53660123,102.8,102.76,3.3297361]
[1770129273981,7.80846221,102.78,102.72,3.3297361]
[1770129274296,7.80846221,102.77,102.73,3.3297361]
[1770129274795,17.53956434,102.77,102.73,13.06388393]
[1770129276203,21.16341616,102.8,102.75,3.3297361]
[1770129276395,9.72762645,102.8,102.76,3.3297361]
[1770129276577,9.72762645,102.8,102.77,3.3297361]
[1770129276778,7.80846221,102.79,102.75,3.3297361]
[1770129277178,7.80846221,102.79,102.75,13.06209008]
[1770129277986,7.80846221,102.78,102.75,3.3297361]
[1770129278188,7.80846221,102.78,102.73,13.06376056]
[1770129278497,7.80846221,102.77,102.74,3.3297361]
[1770129278679,17.53608866,102.8,102.76,13.06112639]
[1770129279284,17.53608866,102.8,102.76,3.3297361]
[1770129280401,7.80846221,102.83,102.78,3.3297361]
[1770129280608,3.8273275,102.85,102.8,3.3297361]
[1770129280901,3.8273275,102.85,102.81,3.3297361]
[1770129281096,0.2,102.85,102.82,3.3297361]
[1770129281297,0.2,102.85,102.83,3.3297361]
[1770129281499,0.2,102.85,102.78,34.84846221]
[1770129281500,3.6273275,102.83,102.77,3.3297361]
[1770129281802,7.80846221,102.81,102.77,3.3297361]
[1770129281993,3.6273275,102.82,102.78,3.3297361]
[1770129281994,7.80846221,102.82,102.78,3.3297361]
[1770129282194,3.6273275,102.83,102.78,3.3297361]
[1770129282505,3.6273275,102.83,102.78,13.05877082]
[1770129282685,7.80846221,102.82,102.78,3.3297361]
[1770129282886,17.53374356,102.83,102.78,3.3297361]
[1770129283082,11.43578971,102.81,102.76,3.3297361]
[1770129283285,7.80846221,102.8,102.76,3.3297361]
[1770129283602,9.72528135,102.83,102.73,5.36086188]
[1770129283603,3.6273275,102.79,102.73,5.36086188]
[1770129283805,3.6273275,102.78,102.73,3.3297361]
[1770129284006,7.80846221,102.79,102.75,3.3297361]
[1770129284706,17.53729055,102.79,102.75,3.3297361]
[1770129285204,17.53729055,102.79,102.75,13.06205947]
[1770129285407,7.80846221,102.79,102.75,13.06205947]
[1770129285707,7.80846221,102.82,102.77,3.3297361]
[1770129286207,7.80846221,102.81,102.77,3.3297361]
[1770129286396,21.16057819,102.83,102.78,3.3297361]
[1770129286705,17.53325069,102.83,102.79,3.3297361]
[1770129286910,7.80846221,102.81,102.77,13.05998654]
[1770129287112,7.80846221,102.81,102.77,3.3297361]
[1770129287320,7.80846221,102.8,102.77,3.3297361]
[1770129287609,7.80846221,102.81,102.77,13.06015835]
[1770129288204,7.80846221,102.82,102.79,3.3297361]
[1770129288408,0.2,102.85,102.81,3.3297361]
[1770129288797,9.92310989,102.85,102.81,3.3297361]
[1770129289106,7.80846221,102.84,102.8,3.3297361]
[1770129290005,7.80846221,102.82,102.78,3.3297361]
[1770129290398,3.6273275,102.84,102.79,3.23601205]
[1770129290596,7.80846221,102.83,102.79,3.23601205]
[1770129290990,17.5341965,102.82,102.79,3.23601205]
[1770129291189,17.5341965,102.82,102.78,3.23601205]
[1770129291389,7.80846221,102.83,102.79,3.23601205]
[1770129291589,7.80846221,102.83,102.79,12.96448718]
[1770129291803,7.80846221,102.82,102.79,3.23601205]
[1770129292395,17.53230507,102.84,102.8,3.23601205]
[1770129292717,0.2,102.88,102.84,3.23601205]
[1770129293006,38.86035135,102.94,102.87,3.40107946]
[1770129293007,17.52605877,102.91,102.87,3.40107946]
[1770129293331,7.80846221,102.88,102.83,7.80846221]
[1770129293489,7.80846221,102.88,102.82,29.67335599]
[1770129293688,11.28547553,102.89,102.84,9.72338777]
[1770129294100,11.28547553,102.9,102.85,7.80846221]
[1770129294299,7.80846221,102.89,102.85,9.72262893]